[Event "Titled Tuesday Blitz January 03 Late 2023"]
[White "Ozer, Omer Faruk"]
[Black "Strahov, Andrej"]
[WhiteFideId "6354564"]
[BlackFideId "4165489"]
[WhiteElo "2360"]
[BlackElo "2398"]
[Result "1-0"]
[Round "05"]
[TimeControl "180+2"]
[Date "2023.01.03"]
[WhiteClock "0:01:07"]
[BlackClock "0:00:06"]

1. d4 {[%clk 0:03:00]}  f5 {[%clk 0:03:00]} 2. g3 {[%clk 0:02:59]}  Nf6 {[%clk 0:02:57]} 3. Bg2 {[%clk 0:02:58]}  e6 {[%clk 0:02:56]} 4. c4 {[%clk 0:02:54]}  Be7 {[%clk 0:02:54]} 5. Nc3 {[%clk 0:02:53]}  O-O {[%clk 0:02:53]} 6. Bg5 {[%clk 0:02:53]}  d6 {[%clk 0:02:50]} 7. Nf3 {[%clk 0:02:52]}  Qe8 {[%clk 0:02:47]} 8. Qc2 {[%clk 0:02:51]}  Nc6 {[%clk 0:02:46]} 9. O-O-O {[%clk 0:02:50]}  a5 {[%clk 0:02:46]} 10. h3 {[%clk 0:02:43]}  Bd7 {[%clk 0:02:45]} 11. g4 {[%clk 0:02:42]}  Nb4 {[%clk 0:02:33]} 12. Qd2 {[%clk 0:02:37]}  Ne4 {[%clk 0:02:31]} 13. Nxe4 {[%clk 0:02:29]}  fxe4 {[%clk 0:02:32]} 14. Ne1 {[%clk 0:02:28]}  Rxf2 {[%clk 0:02:04]} 15. Bxe4 {[%clk 0:02:27]}  Bxg5 {[%clk 0:01:54]} 16. Qxg5 {[%clk 0:02:27]}  Rxe2 {[%clk 0:01:54]} 17. Bf3 {[%clk 0:02:21]}  Rf2 {[%clk 0:01:19]} 18. Qe3 {[%clk 0:02:19]}  Rxf3 {[%clk 0:00:58]} 19. Nxf3 {[%clk 0:02:17]}  Nxa2+ {[%clk 0:00:59]} 20. Kb1 {[%clk 0:02:16]}  Nb4 {[%clk 0:00:50]} 21. Rhe1 {[%clk 0:01:42]}  Bc6 {[%clk 0:00:35]} 22. d5 {[%clk 0:01:41]}  Qg6+ {[%clk 0:00:30]} 23. Qe4 {[%clk 0:01:40]}  Qxe4+ {[%clk 0:00:29]} 24. Rxe4 {[%clk 0:01:41]}  exd5 {[%clk 0:00:30]} 25. Re7 {[%clk 0:01:28]}  dxc4 {[%clk 0:00:21]} 26. Nd4 {[%clk 0:01:29]}  Be8 {[%clk 0:00:18]} 27. Nf5 {[%clk 0:01:27]}  Bg6 {[%clk 0:00:14]} 28. Rxg7+ {[%clk 0:01:27]}  Kh8 {[%clk 0:00:15]} 29. Rxc7 {[%clk 0:01:27]}  d5 {[%clk 0:00:11]} 30. Rxb7 {[%clk 0:01:24]}  Re8 {[%clk 0:00:10]} 31. h4 {[%clk 0:01:16]}  d4 {[%clk 0:00:10]} 32. h5 {[%clk 0:01:16]}  Bxf5+ {[%clk 0:00:10]} 33. gxf5 {[%clk 0:01:17]}  c3 {[%clk 0:00:10]} 34. bxc3 {[%clk 0:01:13]}  dxc3 {[%clk 0:00:11]} 35. Rc1 {[%clk 0:01:08]}  c2+ {[%clk 0:00:07]} 36. Ka1 {[%clk 0:01:08]}  Rf8 {[%clk 0:00:06]} 37. h6 {[%clk 0:01:07]} 1-0


[Site "https://www.chess.com"]

[Event "Titled Tuesday Blitz January 03 Late 2023"]
[White "Estrada Nieto, Julian"]
[Black "Ehlvest, Jaan"]
[WhiteFideId "5101018"]
[BlackFideId "4500016"]
[WhiteElo "2215"]
[BlackElo "2530"]
[Result "0-1"]
[Round "05"]
[TimeControl "180+2"]
[Date "2023.01.03"]
[WhiteClock "0:00:06"]
[BlackClock "0:00:05"]

1. e4 {[%clk 0:03:00]}  c5 {[%clk 0:02:55]} 2. Nf3 {[%clk 0:02:59]}  Nc6 {[%clk 0:02:55]} 3. Bb5 {[%clk 0:02:59]}  e6 {[%clk 0:02:53]} 4. O-O {[%clk 0:02:58]}  Nge7 {[%clk 0:02:52]} 5. Re1 {[%clk 0:02:58]}  Ng6 {[%clk 0:02:51]} 6. c3 {[%clk 0:02:57]}  a6 {[%clk 0:02:47]} 7. Bf1 {[%clk 0:02:57]}  d5 {[%clk 0:02:40]} 8. exd5 {[%clk 0:02:49]}  Qxd5 {[%clk 0:02:39]} 9. d4 {[%clk 0:02:49]}  cxd4 {[%clk 0:02:38]} 10. cxd4 {[%clk 0:02:48]}  Bb4 {[%clk 0:02:37]} 11. Nc3 {[%clk 0:02:49]}  Bxc3 {[%clk 0:02:36]} 12. bxc3 {[%clk 0:02:49]}  O-O {[%clk 0:02:35]} 13. g3 {[%clk 0:02:36]}  Rd8 {[%clk 0:02:27]} 14. Bg2 {[%clk 0:02:35]}  Qd7 {[%clk 0:02:23]} 15. Ng5 {[%clk 0:02:28]}  Qc7 {[%clk 0:01:48]} 16. Qh5 {[%clk 0:02:22]}  h6 {[%clk 0:01:45]} 17. Nxe6 {[%clk 0:02:02]}  Bxe6 {[%clk 0:01:43]} 18. Rxe6 {[%clk 0:02:00]}  fxe6 {[%clk 0:01:33]} 19. Qxg6 {[%clk 0:02:00]}  Qf7 {[%clk 0:01:32]} 20. Qg4 {[%clk 0:01:50]}  Qf5 {[%clk 0:01:18]} 21. Qe2 {[%clk 0:01:44]}  Rac8 {[%clk 0:01:16]} 22. Be4 {[%clk 0:01:41]}  Qf6 {[%clk 0:01:13]} 23. Rb1 {[%clk 0:01:34]}  b5 {[%clk 0:01:12]} 24. Bf4 {[%clk 0:01:30]}  Kh8 {[%clk 0:00:54]} 25. Re1 {[%clk 0:01:19]}  Re8 {[%clk 0:00:49]} 26. Qg4 {[%clk 0:01:15]}  e5 {[%clk 0:00:47]} 27. Bxc6 {[%clk 0:01:00]}  Rxc6 {[%clk 0:00:41]} 28. Bxe5 {[%clk 0:00:57]}  Qg5 {[%clk 0:00:24]} 29. Qxg5 {[%clk 0:00:53]}  hxg5 {[%clk 0:00:23]} 30. Bxg7+ {[%clk 0:00:54]}  Kxg7 {[%clk 0:00:24]} 31. Rxe8 {[%clk 0:00:54]}  Rxc3 {[%clk 0:00:24]} 32. Re2 {[%clk 0:00:44]}  Rd3 {[%clk 0:00:23]} 33. Re7+ {[%clk 0:00:37]}  Kf6 {[%clk 0:00:22]} 34. Rc7 {[%clk 0:00:31]}  Ra3 {[%clk 0:00:17]} 35. Rc2 {[%clk 0:00:29]}  Ke6 {[%clk 0:00:17]} 36. Kg2 {[%clk 0:00:27]}  Kd5 {[%clk 0:00:17]} 37. Rc5+ {[%clk 0:00:27]}  Kxd4 {[%clk 0:00:16]} 38. Rxg5 {[%clk 0:00:28]}  Rxa2 {[%clk 0:00:16]} 39. Rg8 {[%clk 0:00:25]}  b4 {[%clk 0:00:16]} 40. Rb8 {[%clk 0:00:25]}  a5 {[%clk 0:00:16]} 41. h4 {[%clk 0:00:25]}  Kc3 {[%clk 0:00:13]} 42. h5 {[%clk 0:00:25]}  Rd2 {[%clk 0:00:11]} 43. Rb5 {[%clk 0:00:23]}  a4 {[%clk 0:00:10]} 44. h6 {[%clk 0:00:22]}  Rd7 {[%clk 0:00:08]} 45. g4 {[%clk 0:00:19]}  b3 {[%clk 0:00:08]} 46. g5 {[%clk 0:00:16]}  a3 {[%clk 0:00:08]} 47. g6 {[%clk 0:00:14]}  Rd6 {[%clk 0:00:07]} 48. g7 {[%clk 0:00:12]}  Rg6+ {[%clk 0:00:06]} 49. Kf3 {[%clk 0:00:11]}  a2 {[%clk 0:00:06]} 50. Rc5+ {[%clk 0:00:10]}  Kb4 {[%clk 0:00:06]} 51. Rc1 {[%clk 0:00:09]}  b2 {[%clk 0:00:05]} 52. Rh1 {[%clk 0:00:09]}  b1=Q {[%clk 0:00:05]} 53. g8=Q {[%clk 0:00:09]}  Qf5+ {[%clk 0:00:04]} 54. Ke2 {[%clk 0:00:08]}  Rxg8 {[%clk 0:00:05]} 55. h7 {[%clk 0:00:06]}  Re8+ {[%clk 0:00:05]} 56. Kd2 {[%clk 0:00:06]}  Qd5+ {[%clk 0:00:05]} 57. Kc2 {[%clk 0:00:06]}  Rc8+ {[%clk 0:00:05]} 58. Kb2 {[%clk 0:00:06]}  Qd4+ {[%clk 0:00:05]} 59. Kxa2 {[%clk 0:00:06]}  Ra8+ {[%clk 0:00:05]} 0-1


[Site "https://www.chess.com"]

[Event "Titled Tuesday Blitz January 03 Late 2023"]
[White "Omelja, Artem"]
[Black "Donskov, Anatoly"]
[WhiteFideId "14119846"]
[BlackFideId "24143413"]
[WhiteElo "2446"]
[BlackElo "2279"]
[Result "1/2-1/2"]
[Round "05"]
[TimeControl "180+2"]
[Date "2023.01.03"]
[WhiteClock "0:00:01"]
[BlackClock "0:00:03"]

1. d4 {[%clk 0:03:00]}  d5 {[%clk 0:02:59]} 2. c4 {[%clk 0:03:00]}  dxc4 {[%clk 0:03:00]} 3. e3 {[%clk 0:02:59]}  Nc6 {[%clk 0:02:59]} 4. Bxc4 {[%clk 0:02:59]}  e5 {[%clk 0:02:59]} 5. Nf3 {[%clk 0:02:48]}  e4 {[%clk 0:02:59]} 6. Nfd2 {[%clk 0:02:44]}  Qg5 {[%clk 0:03:00]} 7. g3 {[%clk 0:02:24]}  Nf6 {[%clk 0:02:57]} 8. Nc3 {[%clk 0:02:22]}  Qg6 {[%clk 0:02:56]} 9. Qc2 {[%clk 0:02:08]}  Bf5 {[%clk 0:02:56]} 10. Qb3 {[%clk 0:02:03]}  Rb8 {[%clk 0:02:49]} 11. Bb5 {[%clk 0:01:51]}  Bd7 {[%clk 0:02:44]} 12. O-O {[%clk 0:01:48]}  Bd6 {[%clk 0:02:44]} 13. Nd5 {[%clk 0:01:39]}  h5 {[%clk 0:02:34]} 14. Nxf6+ {[%clk 0:01:28]}  gxf6 {[%clk 0:02:35]} 15. Nc4 {[%clk 0:01:27]}  h4 {[%clk 0:02:31]} 16. Nxd6+ {[%clk 0:01:22]}  cxd6 {[%clk 0:02:32]} 17. Qd5 {[%clk 0:01:16]}  Qh7 {[%clk 0:01:45]} 18. f3 {[%clk 0:00:12]}  f5 {[%clk 0:01:27]} 19. g4 {[%clk 0:00:10]}  Qg6 {[%clk 0:01:15]} 20. h3 {[%clk 0:00:06]}  fxg4 {[%clk 0:01:10]} 21. Qxe4+ {[%clk 0:00:03]}  Qxe4 {[%clk 0:01:08]} 22. fxe4 {[%clk 0:00:04]}  Rg8 {[%clk 0:00:54]} 23. hxg4 {[%clk 0:00:03]}  Rxg4+ {[%clk 0:00:54]} 24. Kh2 {[%clk 0:00:04]}  Rxe4 {[%clk 0:00:55]} 25. Bd2 {[%clk 0:00:02]}  Ne7 {[%clk 0:00:47]} 26. Bd3 {[%clk 0:00:02]}  Rg4 {[%clk 0:00:47]} 27. Rg1 {[%clk 0:00:03]}  f5 {[%clk 0:00:46]} 28. Raf1 {[%clk 0:00:02]}  Be6 {[%clk 0:00:41]} 29. b3 {[%clk 0:00:01]}  Kd7 {[%clk 0:00:41]} 30. Rxg4 {[%clk 0:00:01]}  fxg4 {[%clk 0:00:41]} 31. Rf6 {[%clk 0:00:01]}  g3+ {[%clk 0:00:40]} 32. Kg2 {[%clk 0:00:02]}  Rh8 {[%clk 0:00:35]} 33. e4 {[%clk 0:00:01]}  h3+ {[%clk 0:00:33]} 34. Kh1 {[%clk 0:00:02]}  Bg4 {[%clk 0:00:28]} 35. Bf1 {[%clk 0:00:01]}  Nc6 {[%clk 0:00:21]} 36. Bf4 {[%clk 0:00:01]}  g2+ {[%clk 0:00:21]} 37. Bxg2 {[%clk 0:00:01]}  hxg2+ {[%clk 0:00:22]} 38. Kxg2 {[%clk 0:00:02]}  d5 {[%clk 0:00:17]} 39. Rd6+ {[%clk 0:00:03]}  Kc8 {[%clk 0:00:17]} 40. Rxd5 {[%clk 0:00:02]}  Rg8 {[%clk 0:00:15]} 41. Kf2 {[%clk 0:00:02]}  Bh3 {[%clk 0:00:14]} 42. Rh5 {[%clk 0:00:01]}  Rg2+ {[%clk 0:00:12]} 43. Ke3 {[%clk 0:00:01]}  Bg4 {[%clk 0:00:09]} 44. Rh8+ {[%clk 0:00:02]}  Kd7 {[%clk 0:00:10]} 45. d5 {[%clk 0:00:03]}  Nb4 {[%clk 0:00:10]} 46. Rh7+ {[%clk 0:00:03]}  Kc8 {[%clk 0:00:09]} 47. Rc7+ {[%clk 0:00:04]}  Kd8 {[%clk 0:00:10]} 48. Rxb7 {[%clk 0:00:02]}  Nxa2 {[%clk 0:00:09]} 49. Rxa7 {[%clk 0:00:01]}  Nc1 {[%clk 0:00:08]} 50. Kd4 {[%clk 0:00:01]}  Nxb3+ {[%clk 0:00:08]} 51. Ke5 {[%clk 0:00:01]}  Re2 {[%clk 0:00:06]} 52. Bg5+ {[%clk 0:00:02]}  Ke8 {[%clk 0:00:06]} 53. Re7+ {[%clk 0:00:02]}  Kf8 {[%clk 0:00:06]} 54. Kf6 {[%clk 0:00:01]}  Nc5 {[%clk 0:00:04]} 55. Bh6+ {[%clk 0:00:01]}  Kg8 {[%clk 0:00:05]} 56. Rg7+ {[%clk 0:00:01]}  Kh8 {[%clk 0:00:05]} 57. Rxg4 {[%clk 0:00:02]}  Nxe4+ {[%clk 0:00:05]} 58. Kg6 {[%clk 0:00:03]}  Nd6 {[%clk 0:00:03]} 59. Bg7+ {[%clk 0:00:03]}  Kg8 {[%clk 0:00:03]} 60. Bf6 {[%clk 0:00:04]}  Kf8 {[%clk 0:00:01]} 61. Ra4 {[%clk 0:00:03]}  Ke8 {[%clk 0:00:01]} 62. Ra8+ {[%clk 0:00:03]}  Kd7 {[%clk 0:00:02]} 63. Ra7+ {[%clk 0:00:03]}  Kc8 {[%clk 0:00:02]} 64. Be7 {[%clk 0:00:02]}  Ne4 {[%clk 0:00:02]} 65. Kf5 {[%clk 0:00:02]}  Nc3 {[%clk 0:00:01]} 66. d6 {[%clk 0:00:02]}  Rd2 {[%clk 0:00:02]} 67. Ke6 {[%clk 0:00:01]}  Re2+ {[%clk 0:00:02]} 68. Kf7 {[%clk 0:00:01]}  Rd2 {[%clk 0:00:03]} 69. Ke8 {[%clk 0:00:02]}  Nb5 {[%clk 0:00:02]} 70. d7+ {[%clk 0:00:02]}  Rxd7 {[%clk 0:00:02]} 71. Rxd7 {[%clk 0:00:03]}  Nc7+ {[%clk 0:00:02]} 72. Rxc7+ {[%clk 0:00:01]}  Kxc7 {[%clk 0:00:03]} 1/2-1/2


[Site "https://www.chess.com"]

[Event "Titled Tuesday Blitz January 03 Late 2023"]
[White "Kleiman, Jake"]
[Black "Urbina Perez, Juan Antonio"]
[WhiteFideId "2020041"]
[BlackFideId "2217368"]
[WhiteElo "2399"]
[BlackElo "2266"]
[Result "1-0"]
[Round "05"]
[TimeControl "180+2"]
[Date "2023.01.03"]
[WhiteClock "0:01:36"]
[BlackClock "0:01:14"]

1. e4 {[%clk 0:02:54]}  c5 {[%clk 0:02:57]} 2. c3 {[%clk 0:02:54]}  Nf6 {[%clk 0:02:55]} 3. e5 {[%clk 0:02:55]}  Nd5 {[%clk 0:02:55]} 4. Bc4 {[%clk 0:02:56]}  Nb6 {[%clk 0:02:55]} 5. Bb3 {[%clk 0:02:56]}  c4 {[%clk 0:02:50]} 6. Bc2 {[%clk 0:02:55]}  d6 {[%clk 0:02:50]} 7. Nf3 {[%clk 0:02:56]}  dxe5 {[%clk 0:02:49]} 8. Nxe5 {[%clk 0:02:57]}  Qd5 {[%clk 0:02:45]} 9. Nf3 {[%clk 0:02:57]}  Qe6+ {[%clk 0:02:41]} 10. Kf1 {[%clk 0:02:56]}  Nc6 {[%clk 0:02:36]} 11. Na3 {[%clk 0:02:56]}  Bd7 {[%clk 0:02:33]} 12. b3 {[%clk 0:02:53]}  g6 {[%clk 0:02:30]} 13. bxc4 {[%clk 0:02:38]}  Bg7 {[%clk 0:02:11]} 14. d4 {[%clk 0:02:35]}  Na5 {[%clk 0:02:10]} 15. c5 {[%clk 0:02:22]}  Nbc4 {[%clk 0:02:10]} 16. Bd3 {[%clk 0:02:14]}  O-O {[%clk 0:01:59]} 17. Qe2 {[%clk 0:02:13]}  Nxa3 {[%clk 0:01:49]} 18. Bxa3 {[%clk 0:02:10]}  Rac8 {[%clk 0:01:34]} 19. h4 {[%clk 0:01:55]}  b6 {[%clk 0:01:29]} 20. h5 {[%clk 0:01:51]}  Qxe2+ {[%clk 0:01:24]} 21. Kxe2 {[%clk 0:01:50]}  Bg4 {[%clk 0:01:17]} 22. hxg6 {[%clk 0:01:43]}  fxg6 {[%clk 0:01:18]} 23. Be4 {[%clk 0:01:36]}  Nc4 {[%clk 0:01:14]} 24. Bd5+ {[%clk 0:01:36]} 1-0


[Site "https://www.chess.com"]

[Event "Titled Tuesday Blitz January 03 Late 2023"]
[White "Leenhouts, Koen"]
[Black "Forgacs, Attila Jr."]
[WhiteFideId "1008439"]
[BlackFideId "773654"]
[WhiteElo "2447"]
[BlackElo "2264"]
[Result "1-0"]
[Round "05"]
[TimeControl "180+2"]
[Date "2023.01.03"]
[WhiteClock "0:00:26"]
[BlackClock "0:00:14"]

1. e4 {[%clk 0:02:48]}  e5 {[%clk 0:03:00]} 2. Nf3 {[%clk 0:02:47]}  Nc6 {[%clk 0:03:01]} 3. Bb5 {[%clk 0:02:45]}  a6 {[%clk 0:03:01]} 4. Ba4 {[%clk 0:02:44]}  Nf6 {[%clk 0:03:01]} 5. O-O {[%clk 0:02:44]}  Be7 {[%clk 0:03:02]} 6. Re1 {[%clk 0:02:43]}  b5 {[%clk 0:03:02]} 7. Bb3 {[%clk 0:02:43]}  O-O {[%clk 0:03:03]} 8. c3 {[%clk 0:02:41]}  d5 {[%clk 0:03:04]} 9. d3 {[%clk 0:02:40]}  dxe4 {[%clk 0:02:50]} 10. dxe4 {[%clk 0:02:40]}  Qxd1 {[%clk 0:02:50]} 11. Bxd1 {[%clk 0:02:37]}  Bb7 {[%clk 0:02:50]} 12. Bg5 {[%clk 0:02:34]}  h6 {[%clk 0:02:50]} 13. Bh4 {[%clk 0:02:32]}  Rfd8 {[%clk 0:02:44]} 14. Bb3 {[%clk 0:02:27]}  Rd7 {[%clk 0:02:31]} 15. Nbd2 {[%clk 0:02:22]}  Rad8 {[%clk 0:02:29]} 16. Nf1 {[%clk 0:02:21]}  Bc5 {[%clk 0:02:14]} 17. Bxf6 {[%clk 0:02:14]}  gxf6 {[%clk 0:02:14]} 18. Ng3 {[%clk 0:02:14]}  Ne7 {[%clk 0:01:59]} 19. Nh5 {[%clk 0:01:54]}  Rd6 {[%clk 0:01:58]} 20. Rad1 {[%clk 0:01:52]}  Kf8 {[%clk 0:01:44]} 21. Nxf6 {[%clk 0:01:42]}  Rxd1 {[%clk 0:01:25]} 22. Rxd1 {[%clk 0:01:43]}  Rxd1+ {[%clk 0:01:25]} 23. Bxd1 {[%clk 0:01:41]}  Bc8 {[%clk 0:00:47]} 24. Nxe5 {[%clk 0:01:34]}  Be6 {[%clk 0:00:43]} 25. Ned7+ {[%clk 0:01:31]}  Kg7 {[%clk 0:00:34]} 26. Nh5+ {[%clk 0:01:28]}  Kg6 {[%clk 0:00:25]} 27. Nxc5 {[%clk 0:01:05]}  Bxa2 {[%clk 0:00:20]} 28. Nxa6 {[%clk 0:01:00]}  Bb1 {[%clk 0:00:21]} 29. Nc5 {[%clk 0:00:57]}  f5 {[%clk 0:00:17]} 30. exf5+ {[%clk 0:00:51]}  Nxf5 {[%clk 0:00:18]} 31. Nf4+ {[%clk 0:00:48]}  Kf7 {[%clk 0:00:18]} 32. Bb3+ {[%clk 0:00:46]}  Ke7 {[%clk 0:00:19]} 33. Bd1 {[%clk 0:00:29]}  Nd6 {[%clk 0:00:19]} 34. b4 {[%clk 0:00:28]}  Nc4 {[%clk 0:00:19]} 35. Be2 {[%clk 0:00:26]}  Na3 {[%clk 0:00:18]} 36. Bd3 {[%clk 0:00:23]}  Ba2 {[%clk 0:00:17]} 37. h4 {[%clk 0:00:23]}  c6 {[%clk 0:00:17]} 38. g4 {[%clk 0:00:23]}  Bf7 {[%clk 0:00:18]} 39. g5 {[%clk 0:00:22]}  hxg5 {[%clk 0:00:19]} 40. hxg5 {[%clk 0:00:22]}  Nc4 {[%clk 0:00:19]} 41. Bxc4 {[%clk 0:00:22]}  Bxc4 {[%clk 0:00:20]} 42. Kh2 {[%clk 0:00:22]}  Bg8 {[%clk 0:00:19]} 43. Kg3 {[%clk 0:00:23]}  Kd6 {[%clk 0:00:19]} 44. Kg4 {[%clk 0:00:22]}  Ke5 {[%clk 0:00:19]} 45. Nfd3+ {[%clk 0:00:22]}  Kd6 {[%clk 0:00:18]} 46. f4 {[%clk 0:00:23]}  Bh7 {[%clk 0:00:18]} 47. f5 {[%clk 0:00:23]}  Ke7 {[%clk 0:00:18]} 48. g6 {[%clk 0:00:23]}  Bg8 {[%clk 0:00:19]} 49. Kg5 {[%clk 0:00:23]}  Kf8 {[%clk 0:00:19]} 50. f6 {[%clk 0:00:24]}  Bc4 {[%clk 0:00:18]} 51. Ne5 {[%clk 0:00:23]}  Bd5 {[%clk 0:00:18]} 52. Ncd7+ {[%clk 0:00:23]}  Kg8 {[%clk 0:00:15]} 53. f7+ {[%clk 0:00:24]}  Bxf7 {[%clk 0:00:15]} 54. gxf7+ {[%clk 0:00:23]}  Kh7 {[%clk 0:00:16]} 55. f8=Q {[%clk 0:00:23]}  c5 {[%clk 0:00:14]} 56. Qh6+ {[%clk 0:00:24]}  Kg8 {[%clk 0:00:14]} 57. Kf6 {[%clk 0:00:25]}  c4 {[%clk 0:00:14]} 58. Qg7# {[%clk 0:00:26]} 1-0


[Site "https://www.chess.com"]

[Event "Titled Tuesday Blitz January 03 Late 2023"]
[White "Rodriguez Fontecha, Marcos"]
[Black "Chernov, Mikhail"]
[WhiteFideId "2256576"]
[BlackFideId "24143170"]
[WhiteElo "2309"]
[BlackElo "2205"]
[Result "1-0"]
[Round "05"]
[TimeControl "180+2"]
[Date "2023.01.03"]
[WhiteClock "0:01:05"]
[BlackClock "0:00:22"]

1. d4 {[%clk 0:03:00]}  d5 {[%clk 0:02:56]} 2. Bf4 {[%clk 0:02:59]}  Nf6 {[%clk 0:02:56]} 3. e3 {[%clk 0:02:59]}  c5 {[%clk 0:02:57]} 4. c3 {[%clk 0:03:00]}  Nc6 {[%clk 0:02:57]} 5. Nd2 {[%clk 0:03:00]}  cxd4 {[%clk 0:02:58]} 6. exd4 {[%clk 0:03:00]}  Bf5 {[%clk 0:02:58]} 7. Qb3 {[%clk 0:02:59]}  Qc8 {[%clk 0:02:58]} 8. Ngf3 {[%clk 0:02:59]}  e6 {[%clk 0:02:58]} 9. Bb5 {[%clk 0:02:58]}  Be7 {[%clk 0:02:44]} 10. O-O {[%clk 0:02:57]}  O-O {[%clk 0:02:44]} 11. Rfe1 {[%clk 0:02:57]}  a6 {[%clk 0:02:39]} 12. Bf1 {[%clk 0:02:57]}  Ne4 {[%clk 0:02:37]} 13. h3 {[%clk 0:02:55]}  b5 {[%clk 0:02:11]} 14. a4 {[%clk 0:02:53]}  Nxd2 {[%clk 0:01:55]} 15. Nxd2 {[%clk 0:02:51]}  b4 {[%clk 0:01:54]} 16. a5 {[%clk 0:02:48]}  Qd7 {[%clk 0:01:37]} 17. Qa4 {[%clk 0:02:45]}  Bd6 {[%clk 0:01:28]} 18. Bxd6 {[%clk 0:02:40]}  Qxd6 {[%clk 0:01:29]} 19. Nb3 {[%clk 0:02:38]}  Bc2 {[%clk 0:01:26]} 20. Rec1 {[%clk 0:02:38]}  Bxb3 {[%clk 0:01:24]} 21. Qxb3 {[%clk 0:02:38]}  Rab8 {[%clk 0:01:15]} 22. Qa4 {[%clk 0:02:32]}  bxc3 {[%clk 0:01:12]} 23. Rxc3 {[%clk 0:02:32]}  Ne7 {[%clk 0:00:53]} 24. b3 {[%clk 0:02:23]}  Rb4 {[%clk 0:00:51]} 25. Qa3 {[%clk 0:02:23]}  Nf5 {[%clk 0:00:47]} 26. Bxa6 {[%clk 0:02:10]}  Nxd4 {[%clk 0:00:35]} 27. Bf1 {[%clk 0:01:59]}  Rfb8 {[%clk 0:00:27]} 28. a6 {[%clk 0:01:57]}  Qb6 {[%clk 0:00:22]} 29. a7 {[%clk 0:01:53]}  Ra8 {[%clk 0:00:22]} 30. Rac1 {[%clk 0:01:05]} 1-0


[Site "https://www.chess.com"]

[Event "Titled Tuesday Blitz January 03 Late 2023"]
[White "Ortega Ruiz, Jose Miguel"]
[Black "Janaszak, Dawid"]
[WhiteFideId "2209713"]
[BlackFideId "1119206"]
[WhiteElo "2351"]
[BlackElo "2316"]
[Result "1-0"]
[Round "05"]
[TimeControl "180+2"]
[Date "2023.01.03"]
[WhiteClock "0:01:08"]
[BlackClock "0:00:07"]

1. Nf3 {[%clk 0:03:00]}  d5 {[%clk 0:02:59]} 2. g3 {[%clk 0:03:00]}  Nf6 {[%clk 0:02:58]} 3. Bg2 {[%clk 0:03:01]}  c6 {[%clk 0:02:58]} 4. O-O {[%clk 0:03:02]}  g6 {[%clk 0:02:57]} 5. b3 {[%clk 0:03:02]}  Bg7 {[%clk 0:02:58]} 6. Bb2 {[%clk 0:03:03]}  O-O {[%clk 0:02:58]} 7. c4 {[%clk 0:03:03]}  Bg4 {[%clk 0:02:57]} 8. h3 {[%clk 0:03:03]}  Bxf3 {[%clk 0:02:57]} 9. Bxf3 {[%clk 0:03:03]}  e6 {[%clk 0:02:58]} 10. d3 {[%clk 0:03:03]}  a5 {[%clk 0:02:57]} 11. Bg2 {[%clk 0:03:03]}  Nbd7 {[%clk 0:02:56]} 12. Nd2 {[%clk 0:02:59]}  Qb6 {[%clk 0:02:55]} 13. a3 {[%clk 0:02:57]}  Rfd8 {[%clk 0:02:53]} 14. Rb1 {[%clk 0:02:57]}  Qc7 {[%clk 0:02:48]} 15. Qc2 {[%clk 0:02:54]}  Ne8 {[%clk 0:02:46]} 16. Bxg7 {[%clk 0:02:54]}  Nxg7 {[%clk 0:02:47]} 17. Rfc1 {[%clk 0:02:54]}  Qe5 {[%clk 0:02:41]} 18. Nf3 {[%clk 0:02:54]}  Qd6 {[%clk 0:02:40]} 19. b4 {[%clk 0:02:51]}  axb4 {[%clk 0:02:39]} 20. axb4 {[%clk 0:02:52]}  Ne5 {[%clk 0:02:28]} 21. Nxe5 {[%clk 0:02:51]}  Qxe5 {[%clk 0:02:29]} 22. b5 {[%clk 0:02:50]}  Nf5 {[%clk 0:02:28]} 23. e3 {[%clk 0:02:46]}  h5 {[%clk 0:02:09]} 24. d4 {[%clk 0:02:46]}  Qf6 {[%clk 0:02:01]} 25. cxd5 {[%clk 0:02:46]}  cxd5 {[%clk 0:01:59]} 26. Qc7 {[%clk 0:02:44]}  Nd6 {[%clk 0:01:56]} 27. Qc2 {[%clk 0:02:20]}  Nc4 {[%clk 0:01:53]} 28. Ra1 {[%clk 0:02:19]}  Rac8 {[%clk 0:01:46]} 29. Qe2 {[%clk 0:02:16]}  h4 {[%clk 0:01:45]} 30. g4 {[%clk 0:02:16]}  e5 {[%clk 0:01:45]} 31. dxe5 {[%clk 0:02:15]}  Qxe5 {[%clk 0:01:46]} 32. Rd1 {[%clk 0:02:14]}  Rc5 {[%clk 0:01:26]} 33. Rac1 {[%clk 0:02:13]}  Ra8 {[%clk 0:01:06]} 34. Bxd5 {[%clk 0:02:07]}  Rxd5 {[%clk 0:01:02]} 35. Rxd5 {[%clk 0:02:07]}  Qxd5 {[%clk 0:01:02]} 36. Qxc4 {[%clk 0:02:08]}  Qf3 {[%clk 0:00:59]} 37. Qf4 {[%clk 0:01:40]}  Qxh3 {[%clk 0:00:48]} 38. b6 {[%clk 0:01:38]}  f5 {[%clk 0:00:36]} 39. gxf5 {[%clk 0:01:35]}  Qxf5 {[%clk 0:00:35]} 40. Qxf5 {[%clk 0:01:34]}  gxf5 {[%clk 0:00:36]} 41. Rc7 {[%clk 0:01:34]}  Ra2 {[%clk 0:00:27]} 42. Rxb7 {[%clk 0:01:33]}  h3 {[%clk 0:00:27]} 43. Rb8+ {[%clk 0:01:27]}  Kg7 {[%clk 0:00:26]} 44. b7 {[%clk 0:01:27]}  Rb2 {[%clk 0:00:23]} 45. Kh2 {[%clk 0:01:27]}  Rxf2+ {[%clk 0:00:20]} 46. Kxh3 {[%clk 0:01:28]}  Rb2 {[%clk 0:00:20]} 47. Kg3 {[%clk 0:01:28]}  Rb4 {[%clk 0:00:18]} 48. Kf3 {[%clk 0:01:27]}  Kh7 {[%clk 0:00:17]} 49. Ke2 {[%clk 0:01:27]}  Kg7 {[%clk 0:00:12]} 50. Kd3 {[%clk 0:01:27]}  Rb3+ {[%clk 0:00:12]} 51. Kd4 {[%clk 0:01:27]}  Rb4+ {[%clk 0:00:10]} 52. Ke5 {[%clk 0:01:27]}  Rb5+ {[%clk 0:00:10]} 53. Kf4 {[%clk 0:01:27]}  Kh7 {[%clk 0:00:09]} 54. Kf3 {[%clk 0:01:16]}  Rb3 {[%clk 0:00:08]} 55. Ke2 {[%clk 0:01:14]}  Kg7 {[%clk 0:00:07]} 56. Kd2 {[%clk 0:01:15]}  Kh7 {[%clk 0:00:07]} 57. Kc2 {[%clk 0:01:15]}  Rb6 {[%clk 0:00:07]} 58. Kc3 {[%clk 0:01:14]}  Rb1 {[%clk 0:00:07]} 59. Kd4 {[%clk 0:01:14]}  Kg7 {[%clk 0:00:08]} 60. Ke5 {[%clk 0:01:14]}  Rb5+ {[%clk 0:00:08]} 61. Ke6 {[%clk 0:01:14]}  Kh7 {[%clk 0:00:08]} 62. Rf8 {[%clk 0:01:06]}  Rxb7 {[%clk 0:00:07]} 63. Rf7+ {[%clk 0:01:06]}  Rxf7 {[%clk 0:00:07]} 64. Kxf7 {[%clk 0:01:07]}  Kh8 {[%clk 0:00:04]} 65. Kf6 {[%clk 0:01:07]}  Kg8 {[%clk 0:00:05]} 66. Kxf5 {[%clk 0:01:08]}  Kf7 {[%clk 0:00:06]} 67. e4 {[%clk 0:01:08]}  Ke7 {[%clk 0:00:06]} 68. Ke5 {[%clk 0:01:08]}  Kf7 {[%clk 0:00:07]} 69. Kd6 {[%clk 0:01:08]} 1-0


[Site "https://www.chess.com"]